Workbook

Sheet Sprint 1
B2: Planning Tool BAP und Phlox
C4: Ressourcen | M4: Tasks | Q4: =C9 -> Michael Br | R4: =C10 -> Thomas | S4: =C11 -> Lukas | T4: =C12 -> Titus | U4: =C13 -> Suzan | V4: =C14 -> Michael K | W4: =C15 -> Moni | X4: =C16 -> Ugo | Y4: =C17 -> Michael Bü | Z4: =C18 -> Alessandro C | AA4: =C19 -> Roman | AB4: =C20 -> Beat | AC4: =C21 -> Daniel | AD4: =C22 -> Alessandro R | AE4: =C23 -> Jürg
M5: Ressourcen | Q5: =K9 -> 8.5 | R5: =K10 -> 1.5 | S5: =K11 -> 4 | T5: =K12 -> 6.5 | U5: =K13 -> 0 | V5: =K14 -> 5 | W5: =K15 -> 4.5 | X5: =K16 -> 3.5 | Y5: =K17 -> 9 | Z5: =K18 -> 4.5 | AA5: =K19 -> 4.5 | AB5: =K20 -> 11 | AC5: =K21 -> 11 | AD5: =K22 -> 3 | AE5: =K23 -> 12
C6: Arbeitstage | E6: 2 | F6: 4 | G6: 4 | H6: 5 | I6: 2 | M6: – Reserven | Q6: =MROUND(Q5*(1-$K$25),0.5) -> 7 | R6: =MROUND(R5*(1-$K$25),0.5) -> 1 | S6: 3 | T6: 5 | U6: 0 | V6: 4 | W6: 3.5 | X6: 3 | Y6: 7 | Z6: 3.5 | AA6: 3.5 | AB6: 9 | AC6: 9 | AD6: 2.5 | AE6: 9.5
C7: Datum | E7: 23.03 | F7: 30.03 | G7: 6.04 | H7: 13.04 | I7: 20.04 | M7: Available | Q7: =Q6-SUMIFS(Table1[Michael Br],$O$10:$O$130,1) -> -3 | R7: =R6-SUMIFS(Table1[Thomas],$O$10:$O$130,1) -> 0 | S7: =S6-SUMIFS(Table1[Lukas],$O$10:$O$130,1) -> -0.5 | T7: =T6-SUMIFS(Table1[Titus],$O$10:$O$130,1) -> -2 | U7: =U6-SUMIFS(Table1[Suzan],$O$10:$O$130,1) -> 0 | V7: =V6-SUMIFS(Table1[Michael K],$O$10:$O$130,1) -> 1.5 | W7: =W6-SUMIFS(Table1[Monika],$O$10:$O$130,1) -> -1 | X7: =X6-SUMIFS(Table1[Ugo],$O$10:$O$130,1) -> -3 | Y7: =Y6-SUMIFS(Table1[Michael Bü],$O$10:$O$130,1) -> -5.5 | Z7: =Z6-SUMIFS(Table1[Alessandro C],$O$10:$O$130,1) -> -1.5 | AA7: =AA6-SUMIFS(Table1[Roman],$O$10:$O$130,1) -> 1.5 | AB7: =AB6-SUMIFS(Table1[Beat],$O$10:$O$130,1) -> -3.5 | AC7: =AC6-SUMIFS(Table1[Daniel],$O$10:$O$130,1) -> 5.5 | AD7: =AD6-SUMIFS(Table1[Alessandro],$O$10:$O$130,1) -> -1 | AE7: =AE6-SUMIFS(Table1[Jürg],$O$10:$O$130,1) -> -3
C8: KW | E8: 13 | F8: 14 | G8: 15 | H8: 16 | I8: 17 | J8: RTB | K8: Ressourcen
C9: Michael Br | E9: 2 | F9: 4 | G9: 4 | H9: 5 | I9: 2 | J9: 0.5 | K9: =MROUND(SUM(E9:I9*(1-J9)),0.5) -> 8.5 | M9: To Do | N9: Owner | O9: Prio | P9: Tot | Q9: Michael Br | R9: Thomas | S9: Lukas | T9: Titus | U9: Suzan | V9: Michael K | W9: Monika | X9: Ugo | Y9: Michael Bü | Z9: Alessandro C | AA9: Roman | AB9: Beat | AC9: Daniel | AD9: Alessandro | AE9: Jürg
C10: Thomas | E10: 1 | F10: 0 | G10: 0 | H10: 0 | I10: 2 | J10: 0.5 | K10: =MROUND(SUM(E10:I10*(1-J10)),0.5) -> 1.5 | M10: Abschluss Testumgebung für EVI.R2-Prozesse | N10: Alessandro R | O10: 1 | P10: =SUM(Table1[[#This Row],[Michael Br]:[Jürg]]) -> 3 | AD10: 3
C11: Lukas | E11: 1 | F11: 4 | G11: 3 | H11: 4 | I11: 2 | J11: 0.7 | K11: =MROUND(SUM(E11:I11*(1-J11)),0.5) -> 4 | M11: Ablösung sap-con Server (WS_SAP, Leistung2XML, SAP Extraktionsprogramm) | N11: Alessandro R | O11: 2 | P11: =SUM(Table1[[#This Row],[Michael Br]:[Jürg]]) -> 3.5 | Z11: 2 | AB11: 0.5 | AD11: 1
C12: Titus | E12: 2 | F12: 3 | G12: 4 | H12: 5 | I12: 2 | J12: 0.6 | K12: =MROUND(SUM(E12:I12*(1-J12)),0.5) -> 6.5 | M12: Evento-SDK-Integration neuer Persstamm | N12: Beat | O12: 1 | P12: =SUM(Table1[[#This Row],[Michael Br]:[Jürg]]) -> 1.5 | AB12: 0.5 | AC12: 1
C13: Suzan | E13: 0 | F13: 0 | G13: 0 | H13: 0 | I13: 0 | K13: =MROUND(SUM(E13:I13*(1-J13)),0.5) -> 0 | M13: Aurora: SST Persstamm aufbereiten | N13: Beat | O13: 1 | P13: =SUM(Table1[[#This Row],[Michael Br]:[Jürg]]) -> 2.5 | X13: 1.5 | AB13: 1
C14: Michael K | E14: 2 | F14: 4 | G14: 4 | H14: 5 | I14: 2 | J14: 0.7 | K14: =MROUND(SUM(E14:I14*(1-J14)),0.5) -> 5 | M14: Schliessung 2.0: Meetings, Anforderungen DMU & TES | N14: Beat | O14: 1 | P14: =SUM(Table1[[#This Row],[Michael Br]:[Jürg]]) -> 3.5 | R14: 1 | X14: 0.5 | AB14: 2
C15: Moni | E15: 2 | F15: 3.5 | G15: 4 | H15: 4.5 | I15: 1.5 | J15: 0.7 | K15: =MROUND(SUM(E15:I15*(1-J15)),0.5) -> 4.5 | M15: Aurora: SST Persstamm > Evento Personen & Mitarbeiter verwalten | N15: Beat | O15: 2 | P15: =SUM(Table1[[#This Row],[Michael Br]:[Jürg]]) -> 7 | Y15: 6 | AB15: 1
C16: Ugo | E16: 2 | F16: 4 | G16: 4 | H16: 5 | I16: 1.5 | J16: 0.8 | K16: =MROUND(SUM(E16:I16*(1-J16)),0.5) -> 3.5 | M16: Aurora: Anpassungen ILV-Berechnung an neue Persstamm-Tabelle | N16: Beat | O16: 2 | P16: =SUM(Table1[[#This Row],[Michael Br]:[Jürg]]) -> 3 | W16: 0.5 | AA16: 2 | AB16: 0.5
C17: Michael Bü | E17: 2 | F17: 3 | G17: 4 | H17: 4 | I17: 0 | J17: 0.3 | K17: =MROUND(SUM(E17:I17*(1-J17)),0.5) -> 9 | M17: Aurora: Anpassungen ILV-Anzeige & Campus-Card Berechnung an neue Persstamm-Tabelle | N17: Beat | O17: 2 | P17: =SUM(Table1[[#This Row],[Michael Br]:[Jürg]]) -> 6.5 | W17: 0.5 | Y17: 4 | AB17: 2
C18: Alessandro C | E18: 1 | F18: 3 | G18: 2.5 | H18: 3 | I18: 1.5 | J18: 0.6 | K18: =MROUND(SUM(E18:I18*(1-J18)),0.5) -> 4.5 | M18: RaumRes Unit-Tests erstellen - 1. Stage | N18: Daniel | O18: 2 | P18: =SUM(Table1[[#This Row],[Michael Br]:[Jürg]]) -> 10 | Y18: 0.5 | AC18: 9.5
C19: Roman | E19: 0.5 | F19: 1.5 | G19: 2.5 | H19: 3 | I19: 1.5 | J19: 0.5 | K19: =MROUND(SUM(E19:I19*(1-J19)),0.5) -> 4.5 | M19: Aurora (Meetings, Abstimmungen, Abklärungen, Testing, Implementierung (SST)Aufträge/Anfragen Kanton) | N19: Jürg | O19: 1 | P19: =SUM(Table1[[#This Row],[Michael Br]:[Jürg]]) -> 12.5 | Z19: 0.5 | AB19: 4 | AE19: 8
C20: Beat | E20: 1.5 | F20: 3.5 | G20: 3 | H20: =ROUND(H6*0.8*2,0)/2 -> 4 | I20: 1.5 | J20: 0.2 | K20: =MROUND(SUM(E20:I20*(1-J20)),0.5) -> 11 | M20: Thema Lizenzen HCM/FIN (Analyse, Handlungsoptionen) | N20: Jürg | O20: 1 | P20: =SUM(Table1[[#This Row],[Michael Br]:[Jürg]]) -> 2.5 | AE20: 2.5
C21: Daniel | E21: 2 | F21: 3 | G21: 4 | H21: 4 | I21: 1 | J21: 0.2 | K21: =MROUND(SUM(E21:I21*(1-J21)),0.5) -> 11 | M21: FEE (Berechtigungskonzept) | N21: Jürg | O21: 1 | P21: =SUM(Table1[[#This Row],[Michael Br]:[Jürg]]) -> 1 | AE21: 1
C22: Alessandro R | E22: 2 | F22: 3 | G22: 3 | H22: 4 | I22: 2 | J22: 0.8 | K22: =MROUND(SUM(E22:I22*(1-J22)),0.5) -> 3 | M22: nPVF, Einarbeitung (Termine) | N22: Jürg | O22: 1 | P22: =SUM(Table1[[#This Row],[Michael Br]:[Jürg]]) -> 0.5 | AE22: 0.5
C23: Jürg | E23: 2 | F23: 4 | G23: 4 | H23: 5 | I23: 2 | J23: 0.3 | K23: =MROUND(SUM(E23:I23*(1-J23)),0.5) -> 12 | M23: IT-Formulare zentralisieren | N23: Lukas | O23: 1 | P23: =SUM(Table1[[#This Row],[Michael Br]:[Jürg]]) -> 2 | Q23: 0.5 | S23: 1.5
M24: E-Learning Werkstättenlehre auf MS365 | N24: Lukas | O24: 1 | P24: =SUM(Table1[[#This Row],[Michael Br]:[Jürg]]) -> 0.5 | S24: 0.5
J25: Reserven | K25: 0.2 | M25: Projekt Transferplattform «ZHdK Connect» | N25: Lukas | O25: 1 | P25: =SUM(Table1[[#This Row],[Michael Br]:[Jürg]]) -> 0.5 | S25: 0.5
M26: Schnittstelle Onesto-ZAPI | N26: Lukas | O26: 2 | P26: =SUM(Table1[[#This Row],[Michael Br]:[Jürg]]) -> 1 | S26: 0.5 | X26: 0.5
M27: MoniToni Testing Weiterentwicklungen | N27: Lukas | O27: 2 | P27: =SUM(Table1[[#This Row],[Michael Br]:[Jürg]]) -> 2 | S27: 2
M28: Forschungsdaten auf Personenseite zhdk.ch | N28: Lukas | O28: 2 | P28: =SUM(Table1[[#This Row],[Michael Br]:[Jürg]]) -> 1 | S28: 0.5 | X28: 0.5
M29: eDossier PM: Koordination, PM (Ausfall SIS) | N29: Michael Br | O29: 1 | P29: =SUM(Table1[[#This Row],[Michael Br]:[Jürg]]) -> 2 | Q29: 2
M30: Evento Vision R2 Kern (Retro) | N30: Michael Br | O30: 1 | P30: =SUM(Table1[[#This Row],[Michael Br]:[Jürg]]) -> 4.5 | Q30: 0.5 | T30: 0.5 | W30: 0.5 | X30: 0.5 | Y30: 0.5 | Z30: 0.5 | AA30: 0.5 | AB30: 0.5 | AD30: 0.5
M31: Erarbeitung PM-Framework im Rahmen CoP PM | N31: Michael Br | O31: 1 | P31: =SUM(Table1[[#This Row],[Michael Br]:[Jürg]]) -> 4.5 | Q31: 3.5 | S31: 1
M32: PL Agilisierung | N32: Michael Br | O32: 1 | P32: =SUM(Table1[[#This Row],[Michael Br]:[Jürg]]) -> 2.5 | Q32: 2.5
M33: eDossier Schnittstelle | N33: Michael Bü | O33: 1 | P33: =SUM(Table1[[#This Row],[Michael Br]:[Jürg]]) -> 6 | X33: 2.5 | Y33: 2.5 | AB33: 1
M34: Multi-Faktor-Authentisierung (MFA) im Intranet | N34: Michael Bü | O34: 1 | P34: =SUM(Table1[[#This Row],[Michael Br]:[Jürg]]) -> 6 | Y34: 4 | AB34: 2
M35: ClickEnroll: Triagefrage für Zuordnung Anlässe zu ISB, Major, Minor | N35: Michael Bü | O35: 2 | P35: =SUM(Table1[[#This Row],[Michael Br]:[Jürg]]) -> 1 | Y35: 1
M36: Meine Ausbildung: Anmeldungen kennzeichnen (Skizze erstellen) | N36: Michael Bü | O36: 2 | P36: =SUM(Table1[[#This Row],[Michael Br]:[Jürg]]) -> 0.5 | Y36: 0.5
M37: Zweisprachigkeit Intranet | N37: Michael K | O37: 1 | P37: =SUM(Table1[[#This Row],[Michael Br]:[Jürg]]) -> 3 | V37: 1.5 | X37: 0.5 | AC37: 1
M38: Evaluation Nachfolger arcapos | N38: Michael K | O38: 1 | P38: =SUM(Table1[[#This Row],[Michael Br]:[Jürg]]) -> 2 | Q38: 1 | V38: 1
M39: Evaluation "Freie Seiten" | N39: Michael K | O39: 2 | P39: =SUM(Table1[[#This Row],[Michael Br]:[Jürg]]) -> 1 | V39: 0.5 | AA39: 0.5
M40: Workflow für Anpassungen an den Minor-Beschreibung | N40: Michael K | O40: 2 | P40: =SUM(Table1[[#This Row],[Michael Br]:[Jürg]]) -> 2 | V40: 1 | X40: 1
M41: EFHG PO Meeting + Lehrgangmeeting | N41: Moni | O41: 1 | P41: =SUM(Table1[[#This Row],[Michael Br]:[Jürg]]) -> 2 | T41: 1.5 | W41: 0.5
M42: Evento Vision R2 Prozesse (OE-Struktur Evento Produktion) | N42: Moni | O42: 1 | P42: =SUM(Table1[[#This Row],[Michael Br]:[Jürg]]) -> 0.5 | W42: 0.5
M43: Strukturänderung Prorektorate: Aufgaben erfassen | N43: Moni | O43: 1 | P43: =SUM(Table1[[#This Row],[Michael Br]:[Jürg]]) -> 1 | W43: 1
M44: nPVF: Meeting (mit HRM und/oder FIN) | N44: Moni | O44: 1 | P44: =SUM(Table1[[#This Row],[Michael Br]:[Jürg]]) -> 1 | W44: 0.5 | AE44: 0.5
M45: Evento SDK: Spalte DMU Hauptfach | N45: Moni | O45: 1 | P45: =SUM(Table1[[#This Row],[Michael Br]:[Jürg]]) -> 1.5 | AC45: 1.5
M46: EVI Prozesse: Rollenkonzept | N46: Moni | O46: 1 | P46: =SUM(Table1[[#This Row],[Michael Br]:[Jürg]]) -> 1 | T46: 0.5 | W46: 0.5
M47: Elektronische Einschreibung DMU EOL: Anforderungen ZWB aufnehmen | N47: Moni | O47: 2 | P47: =SUM(Table1[[#This Row],[Michael Br]:[Jürg]]) -> 0.5 | W47: 0.5
M48: DNS-Automatisierung in Stallone | N48: Roman | O48: 2 | P48: =SUM(Table1[[#This Row],[Michael Br]:[Jürg]]) -> 2 | AA48: 2
M49: Graylog-Sidecar Deployment auf Repo umstellen | N49: Roman | O49: 2 | P49: =SUM(Table1[[#This Row],[Michael Br]:[Jürg]]) -> 1 | AA49: 1
M50: Umstellung Logs auf High-Precision Timestamp (für Kronik) | N50: Roman | O50: 2 | P50: =SUM(Table1[[#This Row],[Michael Br]:[Jürg]]) -> 1 | AA50: 1
M51: SiPass Update (Wenn Thomas wieder zurück ist) | N51: Thomas | O51: 2 | P51: =SUM(Table1[[#This Row],[Michael Br]:[Jürg]]) -> 6 | R51: 3 | X51: 1 | Z51: 2
M52: EFHG Scrum Meeting | N52: Titus | O52: 1 | P52: =SUM(Table1[[#This Row],[Michael Br]:[Jürg]]) -> 0.5 | T52: 0.5
M53: EFHG EVI.R3 Testing Kern + Einlesen/konfigurieren externe Testumgebung | N53: Titus | O53: 1 | P53: =SUM(Table1[[#This Row],[Michael Br]:[Jürg]]) -> 2 | T53: 1 | W53: 1
M54: Zeugnis DMU | N54: Titus | O54: 1 | P54: =SUM(Table1[[#This Row],[Michael Br]:[Jürg]]) -> 1.5 | T54: 1.5
M55: Abschluss Dokumente Propädeutikum: SQL Grundlagen | N55: Titus | O55: 1 | P55: =SUM(Table1[[#This Row],[Michael Br]:[Jürg]]) -> 1.5 | T55: 1.5
M56: Excel-Report für FHV-Rechnungsstellung | N56: Titus | O56: 2 | P56: =SUM(Table1[[#This Row],[Michael Br]:[Jürg]]) -> 0
M57: Abschluss Dokumente Propädeutikum: Report erstellen / Testing | N57: Titus | O57: 2 | P57: =SUM(Table1[[#This Row],[Michael Br]:[Jürg]]) -> 2.5 | T57: 2 | W57: 0.5
M58: Report ZWB: ToR CAS (ZWB ToR ergänzen) | N58: Titus | O58: 2 | P58: =SUM(Table1[[#This Row],[Michael Br]:[Jürg]]) -> 2 | T58: 2
M59: Umstellung Haproxy Intranet | N59: Ugo | O59: 1 | P59: =SUM(Table1[[#This Row],[Michael Br]:[Jürg]]) -> 7 | X59: 0.5 | Y59: 0.5 | Z59: 4 | AA59: 0.5 | AB59: 1.5
M60: Debian-Update ZAS | N60: Ugo | O60: 1 | P60: =SUM(Table1[[#This Row],[Michael Br]:[Jürg]]) -> 6 | Y60: 5 | AA60: 1
M61: Konzept Intranet Infrastruktur und Deployment | N61: Ugo | O61: 2 | P61: =SUM(Table1[[#This Row],[Michael Br]:[Jürg]]) -> 0
P62: =SUM(Table1[[#This Row],[Michael Br]:[Jürg]]) -> 0
P63: =SUM(Table1[[#This Row],[Michael Br]:[Jürg]]) -> 0
P64: =SUM(Table1[[#This Row],[Michael Br]:[Jürg]]) -> 0
P65: =SUM(Table1[[#This Row],[Michael Br]:[Jürg]]) -> 0
P66: =SUM(Table1[[#This Row],[Michael Br]:[Jürg]]) -> 0
P67: =SUM(Table1[[#This Row],[Michael Br]:[Jürg]]) -> 0
P68: =SUM(Table1[[#This Row],[Michael Br]:[Jürg]]) -> 0
P69: =SUM(Table1[[#This Row],[Michael Br]:[Jürg]]) -> 0
P70: =SUM(Table1[[#This Row],[Michael Br]:[Jürg]]) -> 0
P71: =SUM(Table1[[#This Row],[Michael Br]:[Jürg]]) -> 0
P72: =SUM(Table1[[#This Row],[Michael Br]:[Jürg]]) -> 0
P73: =SUM(Table1[[#This Row],[Michael Br]:[Jürg]]) -> 0
P74: =SUM(Table1[[#This Row],[Michael Br]:[Jürg]]) -> 0
P75: =SUM(Table1[[#This Row],[Michael Br]:[Jürg]]) -> 0
P76: =SUM(Table1[[#This Row],[Michael Br]:[Jürg]]) -> 0
P77: =SUM(Table1[[#This Row],[Michael Br]:[Jürg]]) -> 0
P78: =SUM(Table1[[#This Row],[Michael Br]:[Jürg]]) -> 0
P79: =SUM(Table1[[#This Row],[Michael Br]:[Jürg]]) -> 0
P80: =SUM(Table1[[#This Row],[Michael Br]:[Jürg]]) -> 0
P81: =SUM(Table1[[#This Row],[Michael Br]:[Jürg]]) -> 0
P82: =SUM(Table1[[#This Row],[Michael Br]:[Jürg]]) -> 0
P83: =SUM(Table1[[#This Row],[Michael Br]:[Jürg]]) -> 0
P84: =SUM(Table1[[#This Row],[Michael Br]:[Jürg]]) -> 0
P85: =SUM(Table1[[#This Row],[Michael Br]:[Jürg]]) -> 0
P86: =SUM(Table1[[#This Row],[Michael Br]:[Jürg]]) -> 0
P87: =SUM(Table1[[#This Row],[Michael Br]:[Jürg]]) -> 0
P88: =SUM(Table1[[#This Row],[Michael Br]:[Jürg]]) -> 0
P89: =SUM(Table1[[#This Row],[Michael Br]:[Jürg]]) -> 0
P90: =SUM(Table1[[#This Row],[Michael Br]:[Jürg]]) -> 0
P91: =SUM(Table1[[#This Row],[Michael Br]:[Jürg]]) -> 0
P92: =SUM(Table1[[#This Row],[Michael Br]:[Jürg]]) -> 0
P93: =SUM(Table1[[#This Row],[Michael Br]:[Jürg]]) -> 0
P94: =SUM(Table1[[#This Row],[Michael Br]:[Jürg]]) -> 0
P95: =SUM(Table1[[#This Row],[Michael Br]:[Jürg]]) -> 0
P96: =SUM(Table1[[#This Row],[Michael Br]:[Jürg]]) -> 0
P97: =SUM(Table1[[#This Row],[Michael Br]:[Jürg]]) -> 0
P98: =SUM(Table1[[#This Row],[Michael Br]:[Jürg]]) -> 0
P99: =SUM(Table1[[#This Row],[Michael Br]:[Jürg]]) -> 0
P100: =SUM(Table1[[#This Row],[Michael Br]:[Jürg]]) -> 0
P101: =SUM(Table1[[#This Row],[Michael Br]:[Jürg]]) -> 0
P102: =SUM(Table1[[#This Row],[Michael Br]:[Jürg]]) -> 0
P103: =SUM(Table1[[#This Row],[Michael Br]:[Jürg]]) -> 0
P104: =SUM(Table1[[#This Row],[Michael Br]:[Jürg]]) -> 0
P105: =SUM(Table1[[#This Row],[Michael Br]:[Jürg]]) -> 0
P106: =SUM(Table1[[#This Row],[Michael Br]:[Jürg]]) -> 0
P107: =SUM(Table1[[#This Row],[Michael Br]:[Jürg]]) -> 0
P108: =SUM(Table1[[#This Row],[Michael Br]:[Jürg]]) -> 0
P109: =SUM(Table1[[#This Row],[Michael Br]:[Jürg]]) -> 0
P110: =SUM(Table1[[#This Row],[Michael Br]:[Jürg]]) -> 0
P111: =SUM(Table1[[#This Row],[Michael Br]:[Jürg]]) -> 0
P112: =SUM(Table1[[#This Row],[Michael Br]:[Jürg]]) -> 0
P113: =SUM(Table1[[#This Row],[Michael Br]:[Jürg]]) -> 0
P114: =SUM(Table1[[#This Row],[Michael Br]:[Jürg]]) -> 0
P115: =SUM(Table1[[#This Row],[Michael Br]:[Jürg]]) -> 0
P116: =SUM(Table1[[#This Row],[Michael Br]:[Jürg]]) -> 0
P117: =SUM(Table1[[#This Row],[Michael Br]:[Jürg]]) -> 0
P118: =SUM(Table1[[#This Row],[Michael Br]:[Jürg]]) -> 0
P119: =SUM(Table1[[#This Row],[Michael Br]:[Jürg]]) -> 0
P120: =SUM(Table1[[#This Row],[Michael Br]:[Jürg]]) -> 0
P121: =SUM(Table1[[#This Row],[Michael Br]:[Jürg]]) -> 0
P122: =SUM(Table1[[#This Row],[Michael Br]:[Jürg]]) -> 0
P123: =SUM(Table1[[#This Row],[Michael Br]:[Jürg]]) -> 0
P124: =SUM(Table1[[#This Row],[Michael Br]:[Jürg]]) -> 0
P125: =SUM(Table1[[#This Row],[Michael Br]:[Jürg]]) -> 0
P126: =SUM(Table1[[#This Row],[Michael Br]:[Jürg]]) -> 0
P127: =SUM(Table1[[#This Row],[Michael Br]:[Jürg]]) -> 0
P128: =SUM(Table1[[#This Row],[Michael Br]:[Jürg]]) -> 0
P129: =SUM(Table1[[#This Row],[Michael Br]:[Jürg]]) -> 0
P130: =SUM(Table1[[#This Row],[Michael Br]:[Jürg]]) -> 0

Sheet Sprint 2
B2: Planning Tool BAP und Phlox
C4: Ressourcen | M4: Tasks | Q4: =C9 -> Michael Br | R4: =C10 -> Thomas | S4: =C11 -> Lukas | T4: =C12 -> Titus | U4: =C14 -> Suzan | V4: =C15 -> Michael K | W4: =C16 -> Moni | X4: =C17 -> Ugo | Y4: =C18 -> Michael Bü | Z4: =C19 -> Alessandro C | AA4: =C20 -> Roman | AB4: =C21 -> Beat | AC4: =C22 -> Daniel | AD4: =C23 -> Alessandro R | AE4: Nicole | AF4: =C25 -> Jürg
M5: Ressourcen | Q5: =K9 -> 6 | R5: =K10 -> 0 | S5: =K11 -> 4 | T5: =K12 -> 6.5 | U5: =K14 -> 0 | V5: =K15 -> 5 | W5: =K16 -> 5 | X5: =K17 -> 2.5 | Y5: =K18 -> 9.5 | Z5: =K19 -> 4.5 | AA5: =K20 -> 0 | AB5: =K21 -> 10 | AC5: =K22 -> 10.5 | AD5: =K23 -> 0 | AE5: =K24 -> 2 | AF5: =K25 -> 15.5
C6: Arbeitstage | E6: 2 | F6: 4 | G6: 5 | H6: 4 | I6: 2 | M6: – Reserven | Q6: =MROUND(Q5*(1-$K$27),0.5) -> 5 | R6: =MROUND(R5*(1-$K$27),0.5) -> 0 | S6: 3 | T6: 5 | U6: 0 | V6: 4 | W6: 4 | X6: 2 | Y6: 7.5 | Z6: 3.5 | AA6: 0 | AB6: 8 | AC6: 8.5 | AD6: 0 | AE6: =MROUND(AE5*(1-$K$27),0.5) -> 1.5 | AF6: 12.5
C7: Datum | E7: 20.04. | F7: 27.04. | G7: 04.05. | H7: 11.05. | I7: 18.05. | M7: Available | Q7: =Q6-SUMIFS(Table13[Michael Br],$O$10:$O$131,1) -> -3 | R7: =R6-SUMIFS(Table13[Thomas],$O$10:$O$131,1) -> 0 | S7: =S6-SUMIFS(Table13[Lukas],$O$10:$O$131,1) -> 0 | T7: =T6-SUMIFS(Table13[Titus],$O$10:$O$131,1) -> -2.5 | U7: =U6-SUMIFS(Table13[Suzan],$O$10:$O$131,1) -> 0 | V7: =V6-SUMIFS(Table13[Michael K],$O$10:$O$131,1) -> 4 | W7: =W6-SUMIFS(Table13[Monika],$O$10:$O$131,1) -> -3.5 | X7: =X6-SUMIFS(Table13[Ugo],$O$10:$O$131,1) -> -2 | Y7: =Y6-SUMIFS(Table13[Michael Bü],$O$10:$O$131,1) -> 0.5 | Z7: =Z6-SUMIFS(Table13[Alessandro C],$O$10:$O$131,1) -> 0.5 | AA7: =AA6-SUMIFS(Table13[Roman],$O$10:$O$131,1) -> -6 | AB7: =AB6-SUMIFS(Table13[Beat],$O$10:$O$131,1) -> -5.5 | AC7: =AC6-SUMIFS(Table13[Daniel],$O$10:$O$131,1) -> 0.5 | AD7: =AD6-SUMIFS(Table13[Alessandro],$O$10:$O$131,1) -> -3 | AE7: =AE6-SUMIFS(Table13[Nicole],$O$10:$O$131,1) -> 0 | AF7: =AF6-SUMIFS(Table13[Jürg],$O$10:$O$131,1) -> -2
C8: KW | E8: 17 | F8: 18 | G8: 19 | H8: 20 | I8: 21 | J8: RTB | K8: Ressourcen
C9: Michael Br | E9: 1.5 | F9: 0 | G9: 5 | H9: 3.5 | I9: 2 | J9: 0.5 | K9: =MROUND(SUM(E9:I9*(1-J9)),0.5) -> 6 | M9: To Do | N9: Owner | O9: Prio | P9: Tot | Q9: Michael Br | R9: Thomas | S9: Lukas | T9: Titus | U9: Suzan | V9: Michael K | W9: Monika | X9: Ugo | Y9: Michael Bü | Z9: Alessandro C | AA9: Roman | AB9: Beat | AC9: Daniel | AD9: Alessandro | AE9: Nicole | AF9: Jürg
C10: Thomas | J10: 0.5 | K10: =MROUND(SUM(E10:I10*(1-J10)),0.5) -> 0 | M10: EFHG PO Meeting | N10: Moni | O10: 1 | P10: =SUM(Table13[[#This Row],[Michael Br]:[Jürg]]) -> 1 | W10: 1
C11: Lukas | E11: 1 | F11: 3.5 | G11: 4 | H11: 3.5 | I11: 2 | J11: 0.7 | K11: =MROUND(SUM(E11:I11*(1-J11)),0.5) -> 4 | M11: EFHG Scrum Meeting | N11: Titus | O11: 1 | P11: =SUM(Table13[[#This Row],[Michael Br]:[Jürg]]) -> 0.5 | T11: 0.5
C12: Titus | E12: 2 | F12: 4 | G12: 5 | H12: 3 | I12: 2 | J12: 0.6 | K12: =MROUND(SUM(E12:I12*(1-J12)),0.5) -> 6.5 | M12: EFHG EVI.R3 Testing Prozesse | N12: Titus | O12: 1 | P12: =SUM(Table13[[#This Row],[Michael Br]:[Jürg]]) -> 2 | T12: 1 | W12: 1
P13: =SUM(Table13[[#This Row],[Michael Br]:[Jürg]]) -> 0
C14: Suzan | K14: =MROUND(SUM(E14:I14*(1-J14)),0.5) -> 0 | M14: EVI.R2 Prozess lokal einrichten - AL&Immat-Buchung | N14: Titus | O14: 1 | P14: =SUM(Table13[[#This Row],[Michael Br]:[Jürg]]) -> 5 | T14: 1 | W14: 1 | AD14: 3
C15: Michael K | E15: 2 | F15: 4 | G15: 5 | H15: 4 | I15: 2 | J15: 0.7 | K15: =MROUND(SUM(E15:I15*(1-J15)),0.5) -> 5 | M15: EFHG OP Meeting | N15: Titus | O15: 1 | P15: =SUM(Table13[[#This Row],[Michael Br]:[Jürg]]) -> 0.5 | T15: 0.5
C16: Moni | E16: 2 | F16: 3.5 | G16: 4.5 | H16: 2 | I16: 1 | J16: 0.6 | K16: =MROUND(SUM(E16:I16*(1-J16)),0.5) -> 5 | M16: EVT: Excel-Report für FHV-Rechnungsstellung | N16: Titus | O16: 1 | P16: =SUM(Table13[[#This Row],[Michael Br]:[Jürg]]) -> 1 | T16: 1
C17: Ugo | E17: 2 | F17: 0 | G17: 5 | H17: 3 | I17: 2 | J17: 0.8 | K17: =MROUND(SUM(E17:I17*(1-J17)),0.5) -> 2.5 | M17: Minor-Wahl auf eine Einschreibung im Jahr reduzieren (FS ausblenden) | N17: Nicole | O17: 1 | P17: =SUM(Table13[[#This Row],[Michael Br]:[Jürg]]) -> 1.5 | T17: 0.5 | W17: 0.5 | AE17: 0.5
C18: Michael Bü | E18: 0 | F18: 4 | G18: 4 | H18: 3 | I18: 1 | J18: 0.2 | K18: =MROUND(SUM(E18:I18*(1-J18)),0.5) -> 9.5 | M18: Propädeutikum Abschlussdokumente (Report) | N18: Titus | O18: 1 | P18: =SUM(Table13[[#This Row],[Michael Br]:[Jürg]]) -> 2 | T18: 2
C19: Alessandro C | E19: 1 | F19: 3 | G19: 3 | H19: 2 | I19: 2 | J19: 0.6 | K19: =MROUND(SUM(E19:I19*(1-J19)),0.5) -> 4.5 | M19: ProRektorate Ist-Soll für Mailinglisten erstellen | N19: Moni | O19: 2 | P19: =SUM(Table13[[#This Row],[Michael Br]:[Jürg]]) -> 1 | W19: 1
C20: Roman | J20: 0.5 | K20: =MROUND(SUM(E20:I20*(1-J20)),0.5) -> 0 | M20: Meeting eDossier Studierende (Workshops, Sitzungen) | N20: Nicole | O20: 1 | P20: =SUM(Table13[[#This Row],[Michael Br]:[Jürg]]) -> 2 | Q20: 0.5 | T20: 0.5 | W20: 0.5 | AE20: 0.5
C21: Beat | E21: 1.5 | F21: 3.5 | G21: 4 | H21: 3.5 | I21: 2 | J21: 0.3 | K21: =MROUND(SUM(E21:I21*(1-J21)),0.5) -> 10 | M21: Aurora Thema 'Adressänderungen' | N21: Jürg | O21: 1 | P21: =SUM(Table13[[#This Row],[Michael Br]:[Jürg]]) -> 1.5 | W21: 0.5 | AF21: 1
C22: Daniel | E22: 2 | F22: 3 | G22: 4 | H22: 3 | I22: 1 | J22: 0.2 | K22: =MROUND(SUM(E22:I22*(1-J22)),0.5) -> 10.5 | M22: nPVF-Meetings | N22: Jürg | O22: 1 | P22: =SUM(Table13[[#This Row],[Michael Br]:[Jürg]]) -> 1 | W22: 0.5 | AF22: 0.5
C23: Alessandro R | J23: 0.8 | K23: =MROUND(SUM(E23:I23*(1-J23)),0.5) -> 0 | M23: SDK Spezifizierungen Pre Safe (KST, Semester, abgelaufene Anstellung) | N23: Moni | O23: 2 | P23: =SUM(Table13[[#This Row],[Michael Br]:[Jürg]]) -> 0
C24: Nicole | E24: 2 | F24: 0 | G24: 4 | H24: 3 | I24: 2 | J24: 0.8 | K24: =MROUND(SUM(E24:I24*(1-J24)),0.5) -> 2 | M24: Schulung eDossier Studierende | N24: Nicole | O24: 1 | P24: =SUM(Table13[[#This Row],[Michael Br]:[Jürg]]) -> 1.5 | T24: 0.5 | W24: 0.5 | AE24: 0.5
C25: Jürg | E25: 2 | F25: 4 | G25: 5 | H25: 4 | I25: 2 | J25: 0.1 | K25: =MROUND(SUM(E25:I25*(1-J25)),0.5) -> 15.5 | M25: Zeugnis DMU Unterschriften einfügen | N25: Titus | P25: =SUM(Table13[[#This Row],[Michael Br]:[Jürg]]) -> 0
M26: Report ZWB: ToR CAS (ZWB ToR ergänzen) | N26: Titus | O26: 2 | P26: =SUM(Table13[[#This Row],[Michael Br]:[Jürg]]) -> 0
J27: Reserven | K27: 0.2 | M27: ZHdK Connect | N27: Lukas | O27: 2 | P27: =SUM(Table13[[#This Row],[Michael Br]:[Jürg]]) -> 1 | S27: 1
M28: Records Management Projektbegleitung | N28: Lukas | O28: 1 | P28: =SUM(Table13[[#This Row],[Michael Br]:[Jürg]]) -> 0.5 | S28: 0.5
M29: PAUL Update Stg / Testing | N29: Lukas | O29: 1 | P29: =SUM(Table13[[#This Row],[Michael Br]:[Jürg]]) -> 1.5 | S29: 1.5
M30: eDossier Schnittstelle | N30: Michael Bü | O30: 1 | P30: =SUM(Table13[[#This Row],[Michael Br]:[Jürg]]) -> 4.5 | Y30: 4 | AB30: 0.5
M31: ClickEnroll: Triagefrage für Zuordnung Anlässe zu ISB, Major, Minor | N31: Michael Bü | O31: 2 | P31: =SUM(Table13[[#This Row],[Michael Br]:[Jürg]]) -> 1 | Y31: 1
M32: Meine Ausbildung: Anmeldungen kennzeichnen (Skizze erstellen) | N32: Michael Bü | O32: 2 | P32: =SUM(Table13[[#This Row],[Michael Br]:[Jürg]]) -> 0.5 | Y32: 0.5
M33: Debian-Update ZAS | N33: Ugo | O33: 2 | P33: =SUM(Table13[[#This Row],[Michael Br]:[Jürg]]) -> 6 | Y33: 6
M34: RaumRes Unit-Tests erstellen - 2. Stage | N34: Daniel | O34: 2 | P34: =SUM(Table13[[#This Row],[Michael Br]:[Jürg]]) -> 10 | Y34: 1 | AC34: 9
M35: Umstellung intern.zhdk.ch auf neues Graylog | N35: Beat | O35: 2 | P35: =SUM(Table13[[#This Row],[Michael Br]:[Jürg]]) -> 2 | Z35: 1.5 | AB35: 0.5
M36: Aurora: SST Persstamm > Evento Personen & Mitarbeiter verwalten | N36: Beat | O36: 1 | P36: =SUM(Table13[[#This Row],[Michael Br]:[Jürg]]) -> 5.5 | Y36: 2 | AB36: 3.5
M37: Businessapps: Graylog-Abindung | N37: Beat | O37: 2 | P37: =SUM(Table13[[#This Row],[Michael Br]:[Jürg]]) -> 1.5 | AB37: 1.5
M38: Aurora (Meetings, Abstimmungen, Abklärungen, Testing, Implementierung (SST)Aufträge/Anfragen Kanton) | N38: Jürg | O38: 1 | P38: =SUM(Table13[[#This Row],[Michael Br]:[Jürg]]) -> 8 | AB38: 3 | AF38: 5
M39: Multi-Faktor-Authentisierung (MFA) im Intranet | N39: Michael Bü | O39: 1 | P39: =SUM(Table13[[#This Row],[Michael Br]:[Jürg]]) -> 2 | Y39: 1 | AB39: 1
M40: Aurora: Anpassungen ILV-Berechnung an neue Persstamm-Tabelle | N40: Beat | O40: 1 | P40: =SUM(Table13[[#This Row],[Michael Br]:[Jürg]]) -> 8 | W40: 1 | AA40: 6 | AB40: 1
M41: Aurora: Anpassungen ILV-Anzeige & Campus-Card-Berechnung an neue Persstamm-Tabelle | N41: Beat | O41: 1 | P41: =SUM(Table13[[#This Row],[Michael Br]:[Jürg]]) -> 6.5 | W41: 0.5 | X41: 3 | AB41: 3
M42: Thema Lizenzen HCM/FIN (Analyse, Handlungsoptionen) | N42: Jürg | O42: 1 | P42: =SUM(Table13[[#This Row],[Michael Br]:[Jürg]]) -> 1 | AF42: 1
M43: FEE (Berechtigungskonzept) | N43: Jürg | O43: 2 | P43: =SUM(Table13[[#This Row],[Michael Br]:[Jürg]]) -> 1 | AF43: 1
M44: nPVF: automatische ILV-Verbuchung Anforderungsdokument | N44: Jürg | O44: 1 | P44: =SUM(Table13[[#This Row],[Michael Br]:[Jürg]]) -> 4 | AF44: 4
M45: Off-Boarding Appl.: Auslegeordnung/Ablauf (Monika Stucki) | N45: Jürg | O45: 1 | P45: =SUM(Table13[[#This Row],[Michael Br]:[Jürg]]) -> 2 | AF45: 2
M46: Aurora: Abnahmetests S0295 | N46: Jürg | O46: 1 | P46: =SUM(Table13[[#This Row],[Michael Br]:[Jürg]]) -> 2 | AB46: 1 | AF46: 1
M47: Erarbeitung PM-Framework im Rahmen CoP PM | N47: Michael Br | O47: 1 | P47: =SUM(Table13[[#This Row],[Michael Br]:[Jürg]]) -> 4 | Q47: 3 | S47: 1
M48: PL Agilisierung | N48: Michael Br | O48: 1 | P48: =SUM(Table13[[#This Row],[Michael Br]:[Jürg]]) -> 1 | Q48: 1
M49: PSA EVI-R2-Prozesse inkl. Vor-/Nachbereitung | N49: Michael Br | O49: 1 | P49: =SUM(Table13[[#This Row],[Michael Br]:[Jürg]]) -> 0.5 | Q49: 0.5
M50: Neuausschreibung Rahmenvertrag Los 3 Transformationsexperte | N50: Michael Br | O50: 1 | P50: =SUM(Table13[[#This Row],[Michael Br]:[Jürg]]) -> 2 | Q50: 2
M51: Projektkooridnation eDossier | N51: Michael Br | O51: 1 | P51: =SUM(Table13[[#This Row],[Michael Br]:[Jürg]]) -> 1 | Q51: 1
M52: PoC AI in der Entwicklung: Prototyo mit MCP | N52: Ugo | O52: 1 | P52: =SUM(Table13[[#This Row],[Michael Br]:[Jürg]]) -> 2 | X52: 1 | Z52: 1
M53: Aurora: Evento-SDK-Integration neuer Persstamm | N53: Beat | O53: 1 | P53: =SUM(Table13[[#This Row],[Michael Br]:[Jürg]]) -> 4.5 | AB53: 0.5 | AC53: 4
M54: Infrastruktur ZAS: Konzept Migration intern-node2 in interne Zone | N54: Ugo | O54: 1 | P54: 2 | Z54: 2
M55: Evento: Reproduzieren von OOM-Abstürzen (siehe https://swisslearninghub.atlassian.net/browse/EVO-13458?focusedCommentId=315851) | N55: Titus | O55: 2 | P55: =SUM(Table13[[#This Row],[Michael Br]:[Jürg]]) -> 3.5 | AB55: 0.5 | AD55: 3
M56: Evento: vertiefte Analyse OOM-Abstürze: welche LINQ-Queries sind betroffen (siehe https://swisslearninghub.atlassian.net/browse/EVO-13458?focusedCommentId=315851) | N56: Titus | O56: 2 | P56: =SUM(Table13[[#This Row],[Michael Br]:[Jürg]]) -> 1 | AB56: 1
M57: ProRektorate - Koordination/Spezifikation Änderung Config CO-Objekte (Kürzel) | N57: Moni | O57: 1 | P57: =SUM(Table13[[#This Row],[Michael Br]:[Jürg]]) -> 0.5 | W57: 0.5
M58: Evento SDK: Spalte DMU Hauptfach | N58: Moni | O58: 1 | P58: =SUM(Table13[[#This Row],[Michael Br]:[Jürg]]) -> 4 | AC58: 4
P59: =SUM(Table13[[#This Row],[Michael Br]:[Jürg]]) -> 0
P60: =SUM(Table13[[#This Row],[Michael Br]:[Jürg]]) -> 0
P61: =SUM(Table13[[#This Row],[Michael Br]:[Jürg]]) -> 0
P62: =SUM(Table13[[#This Row],[Michael Br]:[Jürg]]) -> 0
P63: =SUM(Table13[[#This Row],[Michael Br]:[Jürg]]) -> 0
P64: =SUM(Table13[[#This Row],[Michael Br]:[Jürg]]) -> 0
P65: =SUM(Table13[[#This Row],[Michael Br]:[Jürg]]) -> 0
P66: =SUM(Table13[[#This Row],[Michael Br]:[Jürg]]) -> 0
P67: =SUM(Table13[[#This Row],[Michael Br]:[Jürg]]) -> 0
P68: =SUM(Table13[[#This Row],[Michael Br]:[Jürg]]) -> 0
P69: =SUM(Table13[[#This Row],[Michael Br]:[Jürg]]) -> 0
P70: =SUM(Table13[[#This Row],[Michael Br]:[Jürg]]) -> 0
P71: =SUM(Table13[[#This Row],[Michael Br]:[Jürg]]) -> 0
P72: =SUM(Table13[[#This Row],[Michael Br]:[Jürg]]) -> 0
P73: =SUM(Table13[[#This Row],[Michael Br]:[Jürg]]) -> 0
P74: =SUM(Table13[[#This Row],[Michael Br]:[Jürg]]) -> 0
P75: =SUM(Table13[[#This Row],[Michael Br]:[Jürg]]) -> 0
P76: =SUM(Table13[[#This Row],[Michael Br]:[Jürg]]) -> 0
P77: =SUM(Table13[[#This Row],[Michael Br]:[Jürg]]) -> 0
P78: =SUM(Table13[[#This Row],[Michael Br]:[Jürg]]) -> 0
P79: =SUM(Table13[[#This Row],[Michael Br]:[Jürg]]) -> 0
P80: =SUM(Table13[[#This Row],[Michael Br]:[Jürg]]) -> 0
P81: =SUM(Table13[[#This Row],[Michael Br]:[Jürg]]) -> 0
P82: =SUM(Table13[[#This Row],[Michael Br]:[Jürg]]) -> 0
P83: =SUM(Table13[[#This Row],[Michael Br]:[Jürg]]) -> 0
P84: =SUM(Table13[[#This Row],[Michael Br]:[Jürg]]) -> 0
P85: =SUM(Table13[[#This Row],[Michael Br]:[Jürg]]) -> 0
P86: =SUM(Table13[[#This Row],[Michael Br]:[Jürg]]) -> 0
P87: =SUM(Table13[[#This Row],[Michael Br]:[Jürg]]) -> 0
P88: =SUM(Table13[[#This Row],[Michael Br]:[Jürg]]) -> 0
P89: =SUM(Table13[[#This Row],[Michael Br]:[Jürg]]) -> 0
P90: =SUM(Table13[[#This Row],[Michael Br]:[Jürg]]) -> 0
P91: =SUM(Table13[[#This Row],[Michael Br]:[Jürg]]) -> 0
P92: =SUM(Table13[[#This Row],[Michael Br]:[Jürg]]) -> 0
P93: =SUM(Table13[[#This Row],[Michael Br]:[Jürg]]) -> 0
P94: =SUM(Table13[[#This Row],[Michael Br]:[Jürg]]) -> 0
P95: =SUM(Table13[[#This Row],[Michael Br]:[Jürg]]) -> 0
P96: =SUM(Table13[[#This Row],[Michael Br]:[Jürg]]) -> 0
P97: =SUM(Table13[[#This Row],[Michael Br]:[Jürg]]) -> 0
P98: =SUM(Table13[[#This Row],[Michael Br]:[Jürg]]) -> 0
P99: =SUM(Table13[[#This Row],[Michael Br]:[Jürg]]) -> 0
P100: =SUM(Table13[[#This Row],[Michael Br]:[Jürg]]) -> 0
P101: =SUM(Table13[[#This Row],[Michael Br]:[Jürg]]) -> 0
P102: =SUM(Table13[[#This Row],[Michael Br]:[Jürg]]) -> 0
P103: =SUM(Table13[[#This Row],[Michael Br]:[Jürg]]) -> 0
P104: =SUM(Table13[[#This Row],[Michael Br]:[Jürg]]) -> 0
P105: =SUM(Table13[[#This Row],[Michael Br]:[Jürg]]) -> 0
P106: =SUM(Table13[[#This Row],[Michael Br]:[Jürg]]) -> 0
P107: =SUM(Table13[[#This Row],[Michael Br]:[Jürg]]) -> 0
P108: =SUM(Table13[[#This Row],[Michael Br]:[Jürg]]) -> 0
P109: =SUM(Table13[[#This Row],[Michael Br]:[Jürg]]) -> 0
P110: =SUM(Table13[[#This Row],[Michael Br]:[Jürg]]) -> 0
P111: =SUM(Table13[[#This Row],[Michael Br]:[Jürg]]) -> 0
P112: =SUM(Table13[[#This Row],[Michael Br]:[Jürg]]) -> 0
P113: =SUM(Table13[[#This Row],[Michael Br]:[Jürg]]) -> 0
P114: =SUM(Table13[[#This Row],[Michael Br]:[Jürg]]) -> 0
P115: =SUM(Table13[[#This Row],[Michael Br]:[Jürg]]) -> 0
P116: =SUM(Table13[[#This Row],[Michael Br]:[Jürg]]) -> 0
P117: =SUM(Table13[[#This Row],[Michael Br]:[Jürg]]) -> 0
P118: =SUM(Table13[[#This Row],[Michael Br]:[Jürg]]) -> 0
P119: =SUM(Table13[[#This Row],[Michael Br]:[Jürg]]) -> 0
P120: =SUM(Table13[[#This Row],[Michael Br]:[Jürg]]) -> 0
P121: =SUM(Table13[[#This Row],[Michael Br]:[Jürg]]) -> 0
P122: =SUM(Table13[[#This Row],[Michael Br]:[Jürg]]) -> 0
P123: =SUM(Table13[[#This Row],[Michael Br]:[Jürg]]) -> 0
P124: =SUM(Table13[[#This Row],[Michael Br]:[Jürg]]) -> 0
P125: =SUM(Table13[[#This Row],[Michael Br]:[Jürg]]) -> 0
P126: =SUM(Table13[[#This Row],[Michael Br]:[Jürg]]) -> 0
P127: =SUM(Table13[[#This Row],[Michael Br]:[Jürg]]) -> 0
P128: =SUM(Table13[[#This Row],[Michael Br]:[Jürg]]) -> 0
P129: =SUM(Table13[[#This Row],[Michael Br]:[Jürg]]) -> 0
P130: =SUM(Table13[[#This Row],[Michael Br]:[Jürg]]) -> 0
P131: =SUM(Table13[[#This Row],[Michael Br]:[Jürg]]) -> 0

Sheet Sprint 3
B2: Planning Tool BAP und Phlox
C4: Ressourcen | M4: Tasks | Q4: =C9 -> Michael Br | R4: =C10 -> Thomas | S4: =C11 -> Lukas | T4: =C12 -> Titus | U4: =C13 -> Suzan | V4: =C14 -> Michael K | W4: =C15 -> Moni | X4: =C16 -> Ugo | Y4: =C17 -> Michael Bü | Z4: =C18 -> Alessandro C | AA4: =C19 -> Roman | AB4: =C20 -> Beat | AC4: =C21 -> Daniel | AD4: =C22 -> Alessandro R | AE4: Nicole | AF4: =C24 -> Jürg
F5: Pfingstmontag | M5: Ressourcen | Q5: =K9 -> 0 | R5: =K10 -> 0 | S5: =K11 -> 0 | T5: =K12 -> 7 | U5: =K13 -> 0 | V5: =K14 -> 0 | W5: =K15 -> 5.5 | X5: =K16 -> 0 | Y5: =K17 -> 0 | Z5: =K18 -> 0 | AA5: =K19 -> 0 | AB5: =K20 -> 0 | AC5: =K21 -> 0 | AD5: =K22 -> 0 | AE5: =K23 -> 0 | AF5: =K24 -> 0
C6: Arbeitstage | E6: 2 | F6: 4 | G6: 5 | H6: 5 | I6: 2 | M6: – Reserven | Q6: =MROUND(Q5*(1-$K$26),0.5) -> 0 | R6: =MROUND(R5*(1-$K$26),0.5) -> 0 | S6: 0 | T6: 5.5 | U6: 0 | V6: 0 | W6: 4.5 | X6: 0 | Y6: 0 | Z6: 0 | AA6: 0 | AB6: 0 | AC6: 0 | AD6: 0 | AE6: 0 | AF6: 0
C7: Datum | E7: 18.05. | F7: 25.05. | G7: 01.06. | H7: 08.06. | I7: 15.06. | M7: Available | Q7: =Q6-SUMIFS(Table134[Michael Br],$O$10:$O$130,1) -> 0 | R7: =R6-SUMIFS(Table134[Thomas],$O$10:$O$130,1) -> 0 | S7: =S6-SUMIFS(Table134[Lukas],$O$10:$O$130,1) -> 0 | T7: =T6-SUMIFS(Table134[Titus],$O$10:$O$130,1) -> 5.5 | U7: =U6-SUMIFS(Table134[Suzan],$O$10:$O$130,1) -> 0 | V7: =V6-SUMIFS(Table134[Michael K],$O$10:$O$130,1) -> 0 | W7: =W6-SUMIFS(Table134[Monika],$O$10:$O$130,1) -> 4.5 | X7: =X6-SUMIFS(Table134[Ugo],$O$10:$O$130,1) -> 0 | Y7: =Y6-SUMIFS(Table134[Michael Bü],$O$10:$O$130,1) -> 0 | Z7: =Z6-SUMIFS(Table134[Alessandro C],$O$10:$O$130,1) -> 0 | AA7: =AA6-SUMIFS(Table134[Roman],$O$10:$O$130,1) -> 0 | AB7: =AB6-SUMIFS(Table134[Beat],$O$10:$O$130,1) -> 0 | AC7: =AC6-SUMIFS(Table134[Daniel],$O$10:$O$130,1) -> 0 | AD7: =AD6-SUMIFS(Table134[Alessandro],$O$10:$O$130,1) -> 0 | AE7: =AE6-SUMIFS(Table134[Nicole],$O$10:$O$130,1) -> 0 | AF7: =AF6-SUMIFS(Table134[Jürg],$O$10:$O$130,1) -> 0
C8: KW | E8: 21 | F8: 22 | G8: 23 | H8: 24 | I8: 25 | J8: RTB | K8: Ressourcen
C9: Michael Br | J9: 0.5 | K9: =MROUND(SUM(E9:I9*(1-J9)),0.5) -> 0 | M9: To Do | N9: Owner | O9: Prio | P9: Tot | Q9: Michael Br | R9: Thomas | S9: Lukas | T9: Titus | U9: Suzan | V9: Michael K | W9: Monika | X9: Ugo | Y9: Michael Bü | Z9: Alessandro C | AA9: Roman | AB9: Beat | AC9: Daniel | AD9: Alessandro | AE9: Nicole | AF9: Jürg
C10: Thomas | J10: 0.5 | K10: =MROUND(SUM(E10:I10*(1-J10)),0.5) -> 0 | M10: EFHG Scrum Meeting | N10: Titus | O10: 1 | P10: =SUM(Table134[[#This Row],[Michael Br]:[Jürg]]) -> 0
C11: Lukas | J11: 0.7 | K11: =MROUND(SUM(E11:I11*(1-J11)),0.5) -> 0 | M11: EFHG EVI.R3 Testing Prozesse | N11: Titus | O11: 1 | P11: =SUM(Table134[[#This Row],[Michael Br]:[Jürg]]) -> 0
C12: Titus | E12: 2 | F12: 4 | G12: 5 | H12: 5 | I12: 2 | J12: 0.6 | K12: =MROUND(SUM(E12:I12*(1-J12)),0.5) -> 7 | M12: EVI.R2 Prozess lokal einrichten - AL&Immat-Buchung | N12: Titus | O12: 1 | P12: =SUM(Table134[[#This Row],[Michael Br]:[Jürg]]) -> 0
C13: Suzan | K13: =MROUND(SUM(E13:I13*(1-J13)),0.5) -> 0 | M13: Report ZWB: ToR CAS (ZWB ToR ergänzen) | N13: Titus | O13: 1 | P13: =SUM(Table134[[#This Row],[Michael Br]:[Jürg]]) -> 0
C14: Michael K | J14: 0.7 | K14: =MROUND(SUM(E14:I14*(1-J14)),0.5) -> 0 | M14: Evento: Reproduzieren von OOM-Abstürzen (siehe https://swisslearninghub.atlassian.net/browse/EVO-13458?focusedCommentId=315851) | N14: Titus | P14: =SUM(Table134[[#This Row],[Michael Br]:[Jürg]]) -> 0
C15: Moni | E15: 2 | F15: 4 | G15: 4.5 | H15: 3.5 | I15: 0 | J15: 0.6 | K15: =MROUND(SUM(E15:I15*(1-J15)),0.5) -> 5.5 | M15: Evento: vertiefte Analyse OOM-Abstürze: welche LINQ-Queries sind betroffen (siehe https://swisslearninghub.atlassian.net/browse/EVO-13458?focusedCommentId=315851) | N15: Titus | P15: =SUM(Table134[[#This Row],[Michael Br]:[Jürg]]) -> 0
C16: Ugo | J16: 0.8 | K16: =MROUND(SUM(E16:I16*(1-J16)),0.5) -> 0 | M16: EFHG PO Meeting | N16: Moni | P16: =SUM(Table134[[#This Row],[Michael Br]:[Jürg]]) -> 0
C17: Michael Bü | J17: 0.2 | K17: =MROUND(SUM(E17:I17*(1-J17)),0.5) -> 0 | M17: SDK Spezifizierungen Pre Safe (KST, Semester, abgelaufene Anstellung) | N17: Moni | P17: =SUM(Table134[[#This Row],[Michael Br]:[Jürg]]) -> 0
C18: Alessandro C | J18: 0.6 | K18: =MROUND(SUM(E18:I18*(1-J18)),0.5) -> 0 | M18: SDK: Absprung zum eDossier - Dossier öffnen | N18: Titus | O18: 1 | P18: =SUM(Table134[[#This Row],[Michael Br]:[Jürg]]) -> 0
C19: Roman | J19: 0.5 | K19: =MROUND(SUM(E19:I19*(1-J19)),0.5) -> 0 | P19: =SUM(Table134[[#This Row],[Michael Br]:[Jürg]]) -> 0
C20: Beat | J20: 0.3 | K20: =MROUND(SUM(E20:I20*(1-J20)),0.5) -> 0 | P20: =SUM(Table134[[#This Row],[Michael Br]:[Jürg]]) -> 0
C21: Daniel | J21: 0.2 | K21: =MROUND(SUM(E21:I21*(1-J21)),0.5) -> 0 | P21: =SUM(Table134[[#This Row],[Michael Br]:[Jürg]]) -> 0
C22: Alessandro R | J22: 0.8 | K22: =MROUND(SUM(E22:I22*(1-J22)),0.5) -> 0 | P22: =SUM(Table134[[#This Row],[Michael Br]:[Jürg]]) -> 0
C23: Nicole | J23: 0.8 | K23: =MROUND(SUM(E23:I23*(1-J23)),0.5) -> 0 | P23: =SUM(Table134[[#This Row],[Michael Br]:[Jürg]]) -> 0
C24: Jürg | J24: 0.1 | K24: =MROUND(SUM(E24:I24*(1-J24)),0.5) -> 0 | P24: =SUM(Table134[[#This Row],[Michael Br]:[Jürg]]) -> 0
P25: =SUM(Table134[[#This Row],[Michael Br]:[Jürg]]) -> 0
J26: Reserven | K26: 0.2 | P26: =SUM(Table134[[#This Row],[Michael Br]:[Jürg]]) -> 0
P27: =SUM(Table134[[#This Row],[Michael Br]:[Jürg]]) -> 0
P28: =SUM(Table134[[#This Row],[Michael Br]:[Jürg]]) -> 0
P29: =SUM(Table134[[#This Row],[Michael Br]:[Jürg]]) -> 0
P30: =SUM(Table134[[#This Row],[Michael Br]:[Jürg]]) -> 0
P31: =SUM(Table134[[#This Row],[Michael Br]:[Jürg]]) -> 0
P32: =SUM(Table134[[#This Row],[Michael Br]:[Jürg]]) -> 0
P33: =SUM(Table134[[#This Row],[Michael Br]:[Jürg]]) -> 0
P34: =SUM(Table134[[#This Row],[Michael Br]:[Jürg]]) -> 0
P35: =SUM(Table134[[#This Row],[Michael Br]:[Jürg]]) -> 0
P36: =SUM(Table134[[#This Row],[Michael Br]:[Jürg]]) -> 0
P37: =SUM(Table134[[#This Row],[Michael Br]:[Jürg]]) -> 0
P38: =SUM(Table134[[#This Row],[Michael Br]:[Jürg]]) -> 0
P39: =SUM(Table134[[#This Row],[Michael Br]:[Jürg]]) -> 0
P40: =SUM(Table134[[#This Row],[Michael Br]:[Jürg]]) -> 0
P41: =SUM(Table134[[#This Row],[Michael Br]:[Jürg]]) -> 0
P42: =SUM(Table134[[#This Row],[Michael Br]:[Jürg]]) -> 0
P43: =SUM(Table134[[#This Row],[Michael Br]:[Jürg]]) -> 0
P44: =SUM(Table134[[#This Row],[Michael Br]:[Jürg]]) -> 0
P45: =SUM(Table134[[#This Row],[Michael Br]:[Jürg]]) -> 0
P46: =SUM(Table134[[#This Row],[Michael Br]:[Jürg]]) -> 0
P47: =SUM(Table134[[#This Row],[Michael Br]:[Jürg]]) -> 0
P48: =SUM(Table134[[#This Row],[Michael Br]:[Jürg]]) -> 0
P49: =SUM(Table134[[#This Row],[Michael Br]:[Jürg]]) -> 0
P50: =SUM(Table134[[#This Row],[Michael Br]:[Jürg]]) -> 0
P51: =SUM(Table134[[#This Row],[Michael Br]:[Jürg]]) -> 0
P52: =SUM(Table134[[#This Row],[Michael Br]:[Jürg]]) -> 0
P53: =SUM(Table134[[#This Row],[Michael Br]:[Jürg]]) -> 0
P54: =SUM(Table134[[#This Row],[Michael Br]:[Jürg]]) -> 0
P55: =SUM(Table134[[#This Row],[Michael Br]:[Jürg]]) -> 0
P56: =SUM(Table134[[#This Row],[Michael Br]:[Jürg]]) -> 0
P57: =SUM(Table134[[#This Row],[Michael Br]:[Jürg]]) -> 0
P58: =SUM(Table134[[#This Row],[Michael Br]:[Jürg]]) -> 0
P59: =SUM(Table134[[#This Row],[Michael Br]:[Jürg]]) -> 0
P60: =SUM(Table134[[#This Row],[Michael Br]:[Jürg]]) -> 0
P61: =SUM(Table134[[#This Row],[Michael Br]:[Jürg]]) -> 0
P62: =SUM(Table134[[#This Row],[Michael Br]:[Jürg]]) -> 0
P63: =SUM(Table134[[#This Row],[Michael Br]:[Jürg]]) -> 0
P64: =SUM(Table134[[#This Row],[Michael Br]:[Jürg]]) -> 0
P65: =SUM(Table134[[#This Row],[Michael Br]:[Jürg]]) -> 0
P66: =SUM(Table134[[#This Row],[Michael Br]:[Jürg]]) -> 0
P67: =SUM(Table134[[#This Row],[Michael Br]:[Jürg]]) -> 0
P68: =SUM(Table134[[#This Row],[Michael Br]:[Jürg]]) -> 0
P69: =SUM(Table134[[#This Row],[Michael Br]:[Jürg]]) -> 0
P70: =SUM(Table134[[#This Row],[Michael Br]:[Jürg]]) -> 0
P71: =SUM(Table134[[#This Row],[Michael Br]:[Jürg]]) -> 0
P72: =SUM(Table134[[#This Row],[Michael Br]:[Jürg]]) -> 0
P73: =SUM(Table134[[#This Row],[Michael Br]:[Jürg]]) -> 0
P74: =SUM(Table134[[#This Row],[Michael Br]:[Jürg]]) -> 0
P75: =SUM(Table134[[#This Row],[Michael Br]:[Jürg]]) -> 0
P76: =SUM(Table134[[#This Row],[Michael Br]:[Jürg]]) -> 0
P77: =SUM(Table134[[#This Row],[Michael Br]:[Jürg]]) -> 0
P78: =SUM(Table134[[#This Row],[Michael Br]:[Jürg]]) -> 0
P79: =SUM(Table134[[#This Row],[Michael Br]:[Jürg]]) -> 0
P80: =SUM(Table134[[#This Row],[Michael Br]:[Jürg]]) -> 0
P81: =SUM(Table134[[#This Row],[Michael Br]:[Jürg]]) -> 0
P82: =SUM(Table134[[#This Row],[Michael Br]:[Jürg]]) -> 0
P83: =SUM(Table134[[#This Row],[Michael Br]:[Jürg]]) -> 0
P84: =SUM(Table134[[#This Row],[Michael Br]:[Jürg]]) -> 0
P85: =SUM(Table134[[#This Row],[Michael Br]:[Jürg]]) -> 0
P86: =SUM(Table134[[#This Row],[Michael Br]:[Jürg]]) -> 0
P87: =SUM(Table134[[#This Row],[Michael Br]:[Jürg]]) -> 0
P88: =SUM(Table134[[#This Row],[Michael Br]:[Jürg]]) -> 0
P89: =SUM(Table134[[#This Row],[Michael Br]:[Jürg]]) -> 0
P90: =SUM(Table134[[#This Row],[Michael Br]:[Jürg]]) -> 0
P91: =SUM(Table134[[#This Row],[Michael Br]:[Jürg]]) -> 0
P92: =SUM(Table134[[#This Row],[Michael Br]:[Jürg]]) -> 0
P93: =SUM(Table134[[#This Row],[Michael Br]:[Jürg]]) -> 0
P94: =SUM(Table134[[#This Row],[Michael Br]:[Jürg]]) -> 0
P95: =SUM(Table134[[#This Row],[Michael Br]:[Jürg]]) -> 0
P96: =SUM(Table134[[#This Row],[Michael Br]:[Jürg]]) -> 0
P97: =SUM(Table134[[#This Row],[Michael Br]:[Jürg]]) -> 0
P98: =SUM(Table134[[#This Row],[Michael Br]:[Jürg]]) -> 0
P99: =SUM(Table134[[#This Row],[Michael Br]:[Jürg]]) -> 0
P100: =SUM(Table134[[#This Row],[Michael Br]:[Jürg]]) -> 0
P101: =SUM(Table134[[#This Row],[Michael Br]:[Jürg]]) -> 0
P102: =SUM(Table134[[#This Row],[Michael Br]:[Jürg]]) -> 0
P103: =SUM(Table134[[#This Row],[Michael Br]:[Jürg]]) -> 0
P104: =SUM(Table134[[#This Row],[Michael Br]:[Jürg]]) -> 0
P105: =SUM(Table134[[#This Row],[Michael Br]:[Jürg]]) -> 0
P106: =SUM(Table134[[#This Row],[Michael Br]:[Jürg]]) -> 0
P107: =SUM(Table134[[#This Row],[Michael Br]:[Jürg]]) -> 0
P108: =SUM(Table134[[#This Row],[Michael Br]:[Jürg]]) -> 0
P109: =SUM(Table134[[#This Row],[Michael Br]:[Jürg]]) -> 0
P110: =SUM(Table134[[#This Row],[Michael Br]:[Jürg]]) -> 0
P111: =SUM(Table134[[#This Row],[Michael Br]:[Jürg]]) -> 0
P112: =SUM(Table134[[#This Row],[Michael Br]:[Jürg]]) -> 0
P113: =SUM(Table134[[#This Row],[Michael Br]:[Jürg]]) -> 0
P114: =SUM(Table134[[#This Row],[Michael Br]:[Jürg]]) -> 0
P115: =SUM(Table134[[#This Row],[Michael Br]:[Jürg]]) -> 0
P116: =SUM(Table134[[#This Row],[Michael Br]:[Jürg]]) -> 0
P117: =SUM(Table134[[#This Row],[Michael Br]:[Jürg]]) -> 0
P118: =SUM(Table134[[#This Row],[Michael Br]:[Jürg]]) -> 0
P119: =SUM(Table134[[#This Row],[Michael Br]:[Jürg]]) -> 0
P120: =SUM(Table134[[#This Row],[Michael Br]:[Jürg]]) -> 0
P121: =SUM(Table134[[#This Row],[Michael Br]:[Jürg]]) -> 0
P122: =SUM(Table134[[#This Row],[Michael Br]:[Jürg]]) -> 0
P123: =SUM(Table134[[#This Row],[Michael Br]:[Jürg]]) -> 0
P124: =SUM(Table134[[#This Row],[Michael Br]:[Jürg]]) -> 0
P125: =SUM(Table134[[#This Row],[Michael Br]:[Jürg]]) -> 0
P126: =SUM(Table134[[#This Row],[Michael Br]:[Jürg]]) -> 0
P127: =SUM(Table134[[#This Row],[Michael Br]:[Jürg]]) -> 0
P128: =SUM(Table134[[#This Row],[Michael Br]:[Jürg]]) -> 0
P129: =SUM(Table134[[#This Row],[Michael Br]:[Jürg]]) -> 0
P130: =SUM(Table134[[#This Row],[Michael Br]:[Jürg]]) -> 0
